fUST/lending_fUST_20250716
["ID","MTS","AMOUNT","RATE_DAILY","PERIOD"]
[372540325,1752677467343,-151.535863,0.00020673,2]
[372540326,1752677467353,-159.605506,0.00020673,2]
[372540327,1752677467363,-1015.29927543,0.00020731,2]
[372540328,1752677467372,-500.0,0.00020731,2]
[372540329,1752677467382,-578.0,0.00020747,2]
[372540330,1752677467391,-7885.54227734,0.00020762,3]
[372540331,1752677467401,-1000.0,0.00020766,2]
[372540332,1752677467411,-1627.865252,0.00020768,2]
[372540333,1752677467420,-1627.865252,0.00020768,2]
[372540334,1752677467430,-274.677623,0.00020768,2]
[372540335,1752677467439,-274.677623,0.00020768,2]
[372540336,1752677467451,-757.983079,0.00020768,2]
[372540337,1752677467461,-757.983079,0.00020768,2]
[372540338,1752677467471,-406.41302509,0.00020775,2]
[372540339,1752677467480,-325.0,0.00020782,2]
[372540340,1752677467490,-420.0,0.00020782,2]
[372540341,1752677467501,-500.0,0.0002079,2]
[372540342,1752677467511,-420.0,0.00020792,2]
[372540343,1752677467521,-2000.0,0.00020816,2]
[372540344,1752677467530,-2000.0,0.00020816,2]
[372540345,1752677467540,-2000.0,0.00020816,2]
[372540346,1752677467549,-2000.0,0.00020816,2]
[372540347,1752677467559,-2222.80362028,0.00020821,2]
[372540348,1752677467568,-161.653212,0.00020821,2]
[372540349,1752677467579,-253.94628,0.00020821,2]
[372540350,1752677467589,-253.94628,0.00020821,2]
[372540351,1752677467599,-381.526955,0.00020821,2]
[372540352,1752677467609,-151.0,0.00020821,2]
[372540353,1752677467619,-151.0,0.00020821,2]
[372540354,1752677467628,-483.51673,0.00020821,2]
[372540355,1752677467637,-483.51673,0.00020821,2]
[372540356,1752677467647,-151.0,0.00020821,2]
[372540357,1752677467656,-151.0,0.00020821,2]
[372540358,1752677467666,-151.0,0.00020821,2]
[372540359,1752677467676,-151.0,0.00020821,2]
[372540360,1752677467685,-218.099447,0.00020821,2]
[372540361,1752677467694,-218.099447,0.00020821,2]
[372540362,1752677467706,-460.0,0.00020821,2]
[372540363,1752677467716,-151.0,0.00020821,2]
[372540364,1752677467725,-460.0,0.00020821,2]
[372540365,1752677467735,-1627.865252,0.00020821,2]
[372540366,1752677467744,-1627.865252,0.00020821,2]
[372540367,1752677467754,-151.0,0.00020821,2]
[372540368,1752677467763,-460.0,0.00020821,2]
[372540369,1752677467773,-460.0,0.00020821,2]
[372540370,1752677467782,-151.0,0.00020821,2]
[372540371,1752677467791,-460.0,0.00020821,2]
[372540372,1752677467801,-460.0,0.00020821,2]
[372540373,1752677467811,-151.0,0.00020821,2]
[372540374,1752677467820,-460.0,0.00020821,2]
[372540375,1752677467829,-460.0,0.00020821,2]
[372540376,1752677467839,-460.0,0.00020821,2]
[372540377,1752677467849,-460.0,0.00020821,2]
[372540378,1752677467858,-460.0,0.00020821,2]
[372540379,1752677467868,-309.772797,0.00020821,2]
[372540380,1752677467878,-309.772797,0.00020821,2]
[372540381,1752677467888,-460.0,0.00020821,2]
[372540382,1752677467899,-460.0,0.00020821,2]
[372540383,1752677467908,-460.0,0.00020821,2]
[372540384,1752677467917,-460.0,0.00020821,2]
[372540385,1752677467926,-460.0,0.00020821,2]
[372540386,1752677467936,-460.0,0.00020821,2]
[372540387,1752677467946,-460.0,0.00020821,2]
[372540388,1752677467958,-658.85,0.00020821,2]
[372540389,1752677467972,-460.0,0.00020821,2]
[372540390,1752677467982,-460.0,0.00020821,2]
[372540391,1752677467991,-475.43,0.00020821,2]
[372540392,1752677468001,-574.00544368,0.00020821,2]
[372540393,1752677468013,-961.83,0.00020821,2]
[372540394,1752677468023,-1083.23,0.00020821,2]
[372540395,1752677468032,-837.99,0.00020821,2]
[372540396,1752677468042,-151.566049,0.00020821,2]
[372540397,1752677468052,-460.0,0.00020821,2]
[372540398,1752677468061,-460.0,0.00020821,2]
[372540399,1752677468070,-460.0,0.00020821,2]
[372540400,1752677468080,-428.85506241,0.00020821,2]
[372540401,1752677468088,-1311.14,0.00020821,2]
[372540402,1752677468098,-1665.72,0.00020821,2]
[372540403,1752677468107,-151.0,0.00020821,2]
[372540404,1752677468116,-460.0,0.00020821,2]
[372540405,1752677468126,-669.53,0.00020821,2]
[372540406,1752677468135,-1125.79,0.00020821,2]
[372540407,1752677468145,-460.0,0.00020821,2]
[372540408,1752677468154,-1381.34,0.00020821,2]
[372540409,1752677468163,-613.33,0.00020821,2]
[372540410,1752677468172,-1663.21,0.00020821,2]
[372540411,1752677468182,-460.0,0.00020821,2]
[372540412,1752677468191,-460.0,0.00020821,2]
[372540413,1752677468203,-460.0,0.00020821,2]
[372540414,1752677468212,-460.0,0.00020821,2]
[372540415,1752677468222,-460.0,0.00020821,2]
[372540416,1752677468231,-176.63114338,0.00020821,2]
[372540417,1752677468241,-567.23,0.00020821,2]
[372540418,1752677468251,-460.0,0.00020821,2]
[372540419,1752677468260,-460.0,0.00020821,2]
[372540420,1752677468270,-460.0,0.00020821,2]
[372540421,1752677468279,-460.0,0.00020821,2]
[372540422,1752677468289,-500.0,0.00020821,2]
[372540423,1752677468298,-460.0,0.00020821,2]
[372540424,1752677468308,-522.42211672,0.00020821,2]
[372540425,1752677468318,-460.0,0.00020821,2]
[372540426,1752677468328,-460.0,0.00020821,2]
[372540427,1752677468337,-151.0,0.00020821,2]
[372540428,1752677468347,-460.0,0.00020821,2]
[372540429,1752677468359,-1465.190851,0.00020821,2]
[372540430,1752677468369,-634.21,0.00020821,2]
[372540431,1752677468378,-1465.190851,0.00020821,2]
[372540432,1752677468388,-460.0,0.00020821,2]
[372540433,1752677468397,-460.0,0.00020821,2]
[372540434,1752677468407,-6222.19,0.00020821,2]
[372540435,1752677468416,-460.0,0.00020821,2]
[372540436,1752677468426,-494.3,0.00020821,2]
[372540437,1752677468435,-460.0,0.00020821,2]
[372540438,1752677468445,-701.57,0.00020821,2]
[372540439,1752677468458,-460.0,0.00020821,2]
[372540440,1752677468467,-2579.0,0.00020821,2]
[372540441,1752677468477,-1587.47,0.00020821,2]
[372540442,1752677468485,-460.0,0.00020821,2]
[372540443,1752677468495,-177.01,0.00020821,2]
[372540444,1752677468505,-510.78,0.00020821,2]
[372540445,1752677468593,-12073.92,0.00020821,2]
[372540446,1752677468604,-460.0,0.00020821,2]
[372540447,1752677468613,-631.2,0.00020821,2]
[372540448,1752677468623,-1556.75,0.00020821,2]
[372540449,1752677468633,-253.575402,0.00020821,2]
[372540450,1752677468642,-253.575402,0.00020821,2]
[372540451,1752677468651,-536.62,0.00020821,2]
[372540452,1752677468663,-460.0,0.00020821,2]
[372540453,1752677468673,-460.0,0.00020821,2]
[372540454,1752677468683,-964.18,0.00020821,2]
[372540455,1752677468693,-1245.03,0.00020821,2]
[372540456,1752677468705,-460.0,0.00020821,2]
[372540457,1752677468714,-15318.54,0.00020821,2]
[372540458,1752677468724,-905.4,0.00020821,2]
[372540459,1752677468733,-3044.67,0.00020821,2]
[372540460,1752677468742,-4111.22,0.00020821,2]
[372540461,1752677468752,-460.0,0.00020821,2]
[372540462,1752677468761,-460.0,0.00020821,2]
[372540463,1752677468771,-4935.17,0.00020821,2]
[372540464,1752677468780,-1948.0,0.00020821,2]
[372540465,1752677468789,-460.0,0.00020821,2]
[372540466,1752677468798,-151.0,0.00020821,2]
[372540467,1752677468809,-151.0,0.00020821,2]
[372540468,1752677468818,-460.0,0.00020821,2]
[372540469,1752677468826,-460.0,0.00020821,2]
[372540470,1752677468835,-460.0,0.00020821,2]
[372540471,1752677468842,-460.0,0.00020821,2]
[372540472,1752677468850,-460.0,0.00020821,2]
[372540473,1752677468858,-498.37,0.00020821,2]
[372540474,1752677468866,-460.0,0.00020821,2]
[372540475,1752677468874,-7778.76,0.00020821,2]
[372540476,1752677468883,-295.35634492,0.00020821,2]
[372540477,1752677468892,-217.121076,0.00020821,2]
[372540478,1752677468902,-217.121076,0.00020821,2]
[372540479,1752677468912,-467.60112217,0.00020821,2]
[372540480,1752677468922,-460.0,0.00020821,2]
[372540481,1752677468931,-460.0,0.00020821,2]
[372540482,1752677468941,-609.11,0.00020821,2]
[372540483,1752677468952,-1030.45,0.00020821,2]
[372540484,1752677468962,-1104.85,0.00020821,2]
[372540485,1752677468975,-460.0,0.00020821,2]
[372540486,1752677468984,-10161.59,0.00020821,2]
[372540487,1752677468995,-612.16551,0.00020821,2]
[372540488,1752677469004,-670.83,0.00020821,2]
[372540489,1752677469014,-612.16551,0.00020821,2]
[372540490,1752677469023,-460.0,0.00020821,2]
[372540491,1752677469033,-996.57,0.00020821,2]
[372540492,1752677469044,-530.41,0.00020821,2]
[372540493,1752677469054,-1421.14,0.00020821,2]
[372540494,1752677469066,-4761.84,0.00020821,2]
[372540495,1752677469076,-297.39647572,0.00020821,2]
[372540496,1752677469087,-460.0,0.00020821,2]
[372540497,1752677469097,-460.0,0.00020821,2]
[372540498,1752677469106,-460.0,0.00020821,2]
[372540499,1752677469115,-6063.24,0.00020821,2]
[372540500,1752677469125,-2283.88,0.00020821,2]
[372540501,1752677469135,-460.0,0.00020821,2]
[372540502,1752677469144,-151.0,0.00020821,2]
[372540503,1752677469154,-734.47,0.00020821,2]
[372540504,1752677469163,-460.0,0.00020821,2]
[372540505,1752677469175,-173.10298681,0.00020821,2]
[372540506,1752677469186,-151.0,0.00020821,2]
[372540507,1752677469196,-499.78525659,0.00020821,2]
[372540508,1752677469207,-651.31,0.00020821,2]
[372540509,1752677469217,-1962.74,0.00020821,2]
[372540510,1752677469227,-946.28,0.00020821,2]
[372540511,1752677469236,-5539.527835,0.00020821,2]
[372540512,1752677469246,-460.0,0.00020821,2]
[372540513,1752677469255,-3975.19,0.00020821,2]
[372540514,1752677469267,-5539.527835,0.00020821,2]
[372540515,1752677469277,-532.35,0.00020821,2]
[372540516,1752677469286,-493.86,0.00020821,2]
[372540517,1752677469296,-460.0,0.00020821,2]
[372540518,1752677469305,-561.69027837,0.00020821,2]
[372540519,1752677469315,-735.63,0.00020821,2]
[372540520,1752677469325,-1763.8,0.00020821,2]
[372540521,1752677469335,-460.0,0.00020821,2]
[372540522,1752677469345,-1135.47,0.00020821,2]
[372540523,1752677469355,-185.68628087,0.00020821,2]
[372540524,1752677469366,-460.0,0.00020821,2]
[372540525,1752677469375,-460.0,0.00020821,2]
[372540526,1752677469384,-6986.13,0.00020821,2]
[372540527,1752677469394,-460.0,0.00020821,2]
[372540528,1752677469404,-1241.01,0.00020821,2]
[372540529,1752677469413,-843.83,0.00020821,2]
[372540530,1752677469423,-488.17,0.00020821,2]
[372540531,1752677469433,-460.0,0.00020821,2]
[372540532,1752677469442,-460.0,0.00020821,2]
[372540533,1752677469453,-460.0,0.00020821,2]
[372540534,1752677469463,-271.357937,0.00020821,2]
[372540535,1752677469473,-2070.57,0.00020821,2]
[372540536,1752677469483,-271.357937,0.00020821,2]
[372540537,1752677469493,-460.0,0.00020821,2]
[372540538,1752677469503,-1038.6,0.00020821,2]
[372540539,1752677469513,-5915.89,0.00020821,2]
[372540540,1752677469523,-6018.33,0.00020821,2]
[372540541,1752677469534,-845.32,0.00020821,2]
[372540542,1752677469544,-492.73,0.00020821,2]
[372540543,1752677469554,-460.0,0.00020821,2]
[372540544,1752677469565,-858.64,0.00020821,2]
[372540545,1752677469577,-460.0,0.00020821,2]
[372540546,1752677469587,-460.0,0.00020821,2]
[372540547,1752677469598,-460.0,0.00020821,2]
[372540548,1752677469607,-460.0,0.00020821,2]
[372540549,1752677469617,-460.0,0.00020821,2]
[372540550,1752677469627,-460.0,0.00020821,2]
[372540551,1752677469637,-466.72677547,0.00020821,2]
[372540552,1752677469647,-969.88,0.00020821,2]
[372540553,1752677469658,-1500.0,0.00020822,2]
[372540554,1752677469667,-500.0,0.00020822,2]
[372540555,1752677469678,-500.0,0.00020822,2]
[372540556,1752677469688,-360.0,0.00020887,2]
[372540557,1752677469701,-1680.0,0.00020893,2]
[372540558,1752677469710,-763.264414,0.000209,2]
[372540559,1752677469719,-763.264414,0.000209,2]
[372540560,1752677469729,-165.299611,0.00020902,2]
[372540561,1752677469739,-165.299611,0.00020902,2]
[372540562,1752677469748,-151.0,0.00020902,2]
[372540563,1752677469758,-151.0,0.00020902,2]
[372540564,1752677469769,-151.0,0.00020902,2]
[372540565,1752677469780,-151.0,0.00020902,2]
[372540566,1752677469790,-151.0,0.00020902,2]
[372540567,1752677469800,-173.823521,0.00020902,2]
[372540568,1752677469810,-173.823521,0.00020902,2]
[372540569,1752677469819,-258.530814,0.00020902,2]
[372540570,1752677469828,-258.530814,0.00020902,2]
[372540571,1752677469838,-1191.904355,0.00020902,2]
[372540572,1752677469847,-1191.904355,0.00020902,2]
[372540573,1752677469858,-429.1687796,0.00020932,2]
[372540574,1752677469868,-855.7213118,0.00020932,2]
[372540575,1752677469877,-7885.54227734,0.00020934,4]
[372540576,1752677469887,-1000.0,0.00020942,2]
[372540577,1752677469897,-291.6857558,0.00020958,2]
[372540578,1752677469907,-500.0,0.00020958,2]
[372540579,1752677469916,-500.8009727,0.00020958,2]
[372540580,1752677469926,-173.387,0.00020969,2]
[372540581,1752677469935,-1000.0,0.00020984,2]
[372540582,1752677469945,-500.0,0.00020984,2]
[372540583,1752677469957,-500.0,0.00020984,2]
[372540584,1752677469970,-500.0,0.00020984,2]
[372540585,1752677470069,-282.13166657,0.00020989,2]
[372540586,1752677470079,-500.0,0.00020989,2]
[372540587,1752677470088,-500.0,0.00020989,2]
[372540588,1752677470098,-160.0,0.0002099,3]
[372540589,1752677470108,-2000.0,0.00020992,2]
[372540590,1752677470118,-1000.0,0.00021,5]
[372540591,1752677470128,-154.52,0.00021006,2]
[372540592,1752677470137,-500.0,0.00021016,2]
[372540593,1752677470147,-500.0,0.00021016,2]
[372540594,1752677470158,-168.0,0.00021018,2]
[372540595,1752677470168,-271.357937,0.00021022,2]
[372540596,1752677470179,-271.357937,0.00021022,2]
[372540597,1752677470191,-159.605506,0.00021022,2]
[372540598,1752677470203,-159.605506,0.00021022,2]
[372540599,1752677470213,-150000.0,0.00021022,2]
[372540600,1752677470223,-150000.0,0.00021022,2]
[372540601,1752677470232,-66902.41089238,0.00021022,2]
[372540602,1752677470242,-1353.989508,0.00021022,2]
[372540603,1752677470251,-1249.566,0.00021033,2]
[372540604,1752677470261,-178.19617358,0.00021033,2]
[372540605,1752677470271,-151.0,0.00021057,2]
[372540606,1752677470281,-151.0,0.00021057,2]
[372540607,1752677470291,-151.0,0.00021057,2]
[372540608,1752677470301,-194.390471,0.00021057,2]
[372540609,1752677470311,-194.390471,0.00021057,2]
[372540610,1752677470321,-151.0,0.00021057,2]
[372540611,1752677470331,-151.0,0.00021057,2]
[372540612,1752677470341,-175.35,0.00021057,2]
[372540613,1752677470351,-175.35,0.00021057,2]
[372540614,1752677470360,-1272.133395,0.00021057,2]
[372540615,1752677470370,-1272.133395,0.00021057,2]
[372540616,1752677470379,-268.312729,0.00021057,2]
[372540617,1752677470390,-268.312729,0.00021057,2]
[372540618,1752677470400,-1000.0,0.00021062,2]
[372540619,1752677470409,-168.0,0.00021063,2]
[372540620,1752677470419,-1500.0,0.00021068,2]
[372540621,1752677470428,-1463.34381087,0.00021068,2]
[372540622,1752677470438,-1500.0,0.00021068,2]
[372540623,1752677470448,-1500.0,0.00021068,2]
[372540624,1752677470459,-500.97080332,0.00021068,2]
[372540625,1752677470469,-1500.0,0.00021068,2]
[372540626,1752677470479,-1337.07202754,0.00021068,2]
[372540627,1752677470488,-1500.0,0.00021068,2]
[372540628,1752677470498,-1500.0,0.00021068,2]
[372540629,1752677470508,-981.75419532,0.00021068,2]
[372540630,1752677470518,-3175.21044593,0.00021086,2]
[372540631,1752677470528,-2000.0,0.00021089,2]
[372540632,1752677470538,-677.575103,0.00021089,2]
[372540633,1752677470548,-677.575103,0.00021089,2]
[372540634,1752677470558,-606.542883,0.00021089,2]
[372540635,1752677470568,-606.542883,0.00021089,2]
[372540636,1752677470578,-206.327012,0.00021089,2]
[372540637,1752677470587,-206.327012,0.00021089,2]
[372540638,1752677470597,-837.516979,0.00021089,2]
[372540639,1752677470607,-837.516979,0.00021089,2]
[372540640,1752677470617,-151.0,0.00021095,2]
[372540641,1752677470626,-151.0,0.00021095,2]
[372540642,1752677470636,-151.0,0.00021095,2]
[372540643,1752677470646,-151.0,0.00021095,2]
[372540644,1752677470655,-151.0,0.00021095,2]
[372540645,1752677470665,-483.51673,0.00021095,2]
[372540646,1752677470675,-483.51673,0.00021095,2]
[372540647,1752677470684,-151.0,0.00021095,2]
[372540648,1752677470694,-201.441829,0.00021095,2]
[372540649,1752677470704,-151.0,0.00021095,2]
[372540650,1752677470722,-151.0,0.00021095,2]
[372540651,1752677470739,-151.0,0.00021095,2]
[372540652,1752677470757,-195.485999,0.00021095,2]
[372540653,1752677470776,-195.485999,0.00021095,2]
[372540654,1752677470796,-218.099447,0.00021095,2]
[372540655,1752677470812,-218.099447,0.00021095,2]
[372540656,1752677470830,-460.0,0.00021095,2]
[372540657,1752677470847,-460.0,0.00021095,2]
[372540658,1752677470863,-1627.865252,0.00021095,2]
[372540659,1752677470883,-1627.865252,0.00021095,2]
[372540660,1752677470902,-151.0,0.00021095,2]
[372540661,1752677470915,-460.0,0.00021095,2]
[372540662,1752677470935,-460.0,0.00021095,2]
[372540663,1752677470950,-151.0,0.00021095,2]
[372540664,1752677470969,-460.0,0.00021095,2]
[372540665,1752677470983,-460.0,0.00021095,2]
[372540666,1752677470998,-151.0,0.00021095,2]
[372540667,1752677471014,-274.677623,0.00021095,2]
[372540668,1752677471029,-274.677623,0.00021095,2]
[372540669,1752677471048,-757.983079,0.00021095,2]
[372540670,1752677471063,-460.0,0.00021095,2]
[372540671,1752677471080,-757.983079,0.00021095,2]
[372540672,1752677471095,-460.0,0.00021095,2]
[372540673,1752677471110,-460.0,0.00021095,2]
[372540674,1752677471126,-460.0,0.00021095,2]
[372540675,1752677471141,-575.4714909,0.00021095,2]
[372540676,1752677471156,-309.772797,0.00021095,2]
[372540677,1752677471171,-309.772797,0.00021095,2]
[372540678,1752677471185,-460.0,0.00021095,2]
[372540679,1752677471200,-151.0,0.00021095,2]
[372540680,1752677471214,-151.0,0.00021095,2]
[372540681,1752677471229,-460.0,0.00021095,2]
[372540682,1752677471244,-460.0,0.00021095,2]
[372540683,1752677471258,-460.0,0.00021095,2]
[372540684,1752677471272,-460.0,0.00021095,2]
[372540685,1752677471286,-246.49242,0.00021095,2]
[372540686,1752677471301,-246.49242,0.00021095,2]
[372540687,1752677471316,-460.0,0.00021095,2]
[372540688,1752677471330,-460.0,0.00021095,2]
[372540689,1752677471345,-658.85,0.00021095,2]
[372540690,1752677471360,-337.371888,0.00021095,2]
[372540691,1752677471377,-530.902226,0.00021095,2]
[372540692,1752677471392,-337.371888,0.00021095,2]
[372540693,1752677471408,-530.902226,0.00021095,2]
[372540694,1752677471422,-460.0,0.00021095,2]
[372540695,1752677471436,-460.0,0.00021095,2]
[372540696,1752677471452,-475.43,0.00021095,2]
[372540697,1752677471468,-961.83,0.00021095,2]
[372540698,1752677471482,-1083.23,0.00021095,2]
[372540699,1752677471497,-837.99,0.00021095,2]
[372540700,1752677471513,-257.0,0.00021095,2]
[372540701,1752677471527,-460.0,0.00021095,2]
[372540702,1752677471541,-460.0,0.00021095,2]
[372540703,1752677471556,-1311.14,0.00021095,2]
[372540704,1752677471570,-1665.72,0.00021095,2]
[372540705,1752677471585,-460.0,0.00021095,2]
[372540706,1752677471599,-669.53,0.00021095,2]
[372540707,1752677471614,-1125.79,0.00021095,2]
[372540708,1752677471628,-460.0,0.00021095,2]
[372540709,1752677471642,-1381.34,0.00021095,2]
[372540710,1752677471657,-613.33,0.00021095,2]
[372540711,1752677471673,-1663.21,0.00021095,2]
[372540712,1752677471689,-460.0,0.00021095,2]
[372540713,1752677471826,-460.0,0.00021095,2]
[372540714,1752677471838,-460.0,0.00021095,2]
[372540715,1752677471848,-460.0,0.00021095,2]
[372540716,1752677471858,-460.0,0.00021095,2]
[372540717,1752677471867,-990.281603,0.00021095,2]
[372540718,1752677471877,-990.281603,0.00021095,2]
[372540719,1752677471886,-567.23,0.00021095,2]
[372540720,1752677471896,-460.0,0.00021095,2]
[372540721,1752677471906,-548.06,0.00021095,2]
[372540722,1752677471917,-460.0,0.00021095,2]
[372540723,1752677471927,-460.0,0.00021095,2]
[372540724,1752677471937,-500.0,0.00021095,2]
[372540725,1752677471946,-460.0,0.00021095,2]
[372540726,1752677471957,-460.0,0.00021095,2]
[372540727,1752677471969,-460.0,0.00021095,2]
[372540728,1752677471979,-151.0,0.00021095,2]
[372540729,1752677471989,-594.36,0.00021095,2]
[372540730,1752677471998,-1465.190851,0.00021095,2]
[372540731,1752677472007,-634.21,0.00021095,2]
[372540732,1752677472018,-1465.190851,0.00021095,2]
[372540733,1752677472027,-460.0,0.00021095,2]
[372540734,1752677472038,-460.0,0.00021095,2]
[372540735,1752677472051,-6222.19,0.00021095,2]
[372540736,1752677472061,-460.0,0.00021095,2]
[372540737,1752677472071,-494.3,0.00021095,2]
[372540738,1752677472080,-460.0,0.00021095,2]
[372540739,1752677472090,-701.57,0.00021095,2]
[372540740,1752677472099,-460.0,0.00021095,2]
[372540741,1752677472109,-2579.0,0.00021095,2]
[372540742,1752677472118,-1587.47,0.00021095,2]
[372540743,1752677472127,-460.0,0.00021095,2]
[372540744,1752677472138,-510.78,0.00021095,2]
[372540745,1752677472147,-12073.92,0.00021095,2]
[372540746,1752677472157,-460.0,0.00021095,2]
[372540747,1752677472167,-631.2,0.00021095,2]
[372540748,1752677472177,-1556.75,0.00021095,2]
[372540749,1752677472186,-253.575402,0.00021095,2]
[372540750,1752677472196,-253.575402,0.00021095,2]
[372540751,1752677472209,-536.62,0.00021095,2]
[372540752,1752677472219,-460.0,0.00021095,2]
[372540753,1752677472229,-460.0,0.00021095,2]
[372540754,1752677472239,-964.18,0.00021095,2]
[372540755,1752677472249,-1245.03,0.00021095,2]
[372540756,1752677472259,-460.0,0.00021095,2]
[372540757,1752677472269,-15318.54,0.00021095,2]
[372540758,1752677472279,-905.4,0.00021095,2]
[372540759,1752677472289,-4111.22,0.00021095,2]
[372540760,1752677472298,-460.0,0.00021095,2]
[372540761,1752677472308,-3044.67,0.00021095,2]
[372540762,1752677472318,-460.0,0.00021095,2]
[372540763,1752677472327,-4935.17,0.00021095,2]
[372540764,1752677472337,-1948.0,0.00021095,2]
[372540765,1752677472347,-460.0,0.00021095,2]
[372540766,1752677472357,-151.0,0.00021095,2]
[372540767,1752677472367,-151.0,0.00021095,2]
[372540768,1752677472377,-460.0,0.00021095,2]
[372540769,1752677472387,-460.0,0.00021095,2]
[372540770,1752677472397,-509.24344022,0.00021095,2]
[372540771,1752677472406,-460.0,0.00021095,2]
[372540772,1752677472416,-498.37,0.00021095,2]
[372540773,1752677472426,-460.0,0.00021095,2]
[372540774,1752677472436,-7778.76,0.00021095,2]
[372540775,1752677472445,-217.121076,0.00021095,2]
[372540776,1752677472457,-217.121076,0.00021095,2]
[372540777,1752677472467,-460.0,0.00021095,2]
[372540778,1752677472477,-609.11,0.00021095,2]
[372540779,1752677472487,-460.0,0.00021095,2]
[372540780,1752677472497,-1030.45,0.00021095,2]
[372540781,1752677472507,-1104.85,0.00021095,2]
[372540782,1752677472516,-460.0,0.00021095,2]
[372540783,1752677472526,-10161.59,0.00021095,2]
[372540784,1752677472536,-612.16551,0.00021095,2]
[372540785,1752677472546,-670.83,0.00021095,2]
[372540786,1752677472556,-612.16551,0.00021095,2]
[372540787,1752677472565,-560.5940781,0.00021095,2]
[372540788,1752677472575,-996.57,0.00021095,2]
[372540789,1752677472586,-530.41,0.00021095,2]
[372540790,1752677472595,-1421.14,0.00021095,2]
[372540791,1752677472605,-4761.84,0.00021095,2]
[372540792,1752677472614,-460.0,0.00021095,2]
[372540793,1752677472625,-460.0,0.00021095,2]
[372540794,1752677472634,-6063.24,0.00021095,2]
[372540795,1752677472644,-2283.88,0.00021095,2]
[372540796,1752677472653,-460.0,0.00021095,2]
[372540797,1752677472663,-151.0,0.00021095,2]
[372540798,1752677472672,-734.47,0.00021095,2]
[372540799,1752677472682,-460.0,0.00021095,2]
[372540800,1752677472692,-151.0,0.00021095,2]
[372540801,1752677472703,-651.31,0.00021095,2]
[372540802,1752677472713,-1962.74,0.00021095,2]
[372540803,1752677472724,-946.28,0.00021095,2]
[372540804,1752677472733,-5539.527835,0.00021095,2]
[372540805,1752677472743,-3975.19,0.00021095,2]
[372540806,1752677472752,-5539.527835,0.00021095,2]
[372540807,1752677472761,-532.35,0.00021095,2]
[372540808,1752677472771,-493.86,0.00021095,2]
[372540809,1752677472782,-460.0,0.00021095,2]
[372540810,1752677472803,-735.63,0.00021095,2]
[372540811,1752677472815,-1763.8,0.00021095,2]
[372540812,1752677472825,-460.0,0.00021095,2]
[372540813,1752677472835,-1135.47,0.00021095,2]
[372540814,1752677472844,-460.0,0.00021095,2]
[372540815,1752677472854,-6986.13,0.00021095,2]
[372540816,1752677472864,-460.0,0.00021095,2]
[372540817,1752677472874,-1241.01,0.00021095,2]
[372540818,1752677472883,-843.83,0.00021095,2]
[372540819,1752677472892,-460.0,0.00021095,2]
[372540820,1752677472902,-460.0,0.00021095,2]
[372540821,1752677472912,-460.0,0.00021095,2]
[372540822,1752677472921,-271.357937,0.00021095,2]
[372540823,1752677472932,-2070.57,0.00021095,2]
[372540824,1752677472941,-460.0,0.00021095,2]